fUSD/lending_fUSD_20260416
["ID","MTS","AMOUNT","RATE_DAILY","PERIOD"]
[420585676,1776274653678,-501.01552979,0.00013873,2]
[420585677,1776274653687,-500.0,0.00013873,2]
[420585678,1776274653697,-500.0,0.00013873,2]
[420585679,1776274653706,-500.41376982,0.00013873,2]
[420585680,1776274653716,-500.0,0.00013873,2]
[420585681,1776274653725,-500.88012616,0.00013873,2]
[420585682,1776274653734,-500.0,0.00013873,2]
[420585683,1776274653743,-500.0,0.00013873,2]
[420585684,1776274653753,-500.0,0.00013873,2]
[420585685,1776274653762,-500.0,0.00013873,2]
[420585686,1776274653772,-151.0,0.00013942,2]
[420585687,1776274653781,-6453.0,0.00013978,2]
[420585688,1776274653790,-300.0,0.00013989,2]
[420585689,1776274653799,-666.0,0.00013989,2]
[420585690,1776274653809,-666.0,0.00013989,2]
[420585691,1776274653818,-500.0,0.00013989,2]
[420585692,1776274653827,-212.126925,0.00014,2]
[420585693,1776274653836,-401.2245,0.000141,2]
[420585694,1776274653846,-393.0,0.00014111,2]
[420585695,1776274653868,-272.23606433,0.0001415,2]
[420585696,1776274653878,-1393.77117699,0.0001415,2]
[420585697,1776274653887,-19082.95829821,0.0001415,2]
[420585698,1776274653899,-1421.64815323,0.0001415,2]
[420585699,1776274653909,-6517.56431338,0.00014166,2]
[420585700,1776274653919,-1000.0,0.00014247,2]
[420585701,1776274653928,-1002.04940376,0.00014247,2]
[420585702,1776274653937,-502.68607407,0.00014247,2]
[420585703,1776274653947,-612.12377874,0.00014247,2]
[420585704,1776274653956,-500.0,0.00014276,2]
[420585705,1776274653966,-4000.0,0.00014308,2]
[420585706,1776274653975,-4000.0,0.00014308,2]
[420585707,1776274653985,-162.0,0.00014372,2]
[420585708,1776274653994,-163.0,0.00014409,2]
[420585709,1776274654003,-1000.0,0.00014421,2]
[420585710,1776274654012,-1001.16478036,0.00014421,2]
[420585711,1776274654021,-500.0,0.00014421,2]
[420585712,1776274654030,-1006.63424982,0.00014421,2]
[420585713,1776274654040,-1000.0,0.00014421,2]
[420585714,1776274654049,-1000.0,0.00014421,2]
[420585715,1776274654058,-500.0,0.00014421,2]
[420585716,1776274654067,-1000.0,0.00014421,2]
[420585717,1776274654077,-500.0,0.00014421,2]
[420585718,1776274654086,-1000.0,0.00014421,2]
[420585719,1776274654096,-323.74940906,0.00014421,2]
[420585720,1776274654105,-1000.0,0.00014421,2]
[420585721,1776274654114,-1000.0,0.00014421,2]
[420585722,1776274654123,-1000.0,0.00014421,2]
[420585723,1776274654133,-1000.0,0.00014421,2]
[420585724,1776274654142,-188.31087151,0.00014421,2]
[420585725,1776274654151,-505.73348632,0.00014421,2]
[420585726,1776274654160,-251.46105578,0.00014421,2]
[420585727,1776274654170,-6517.56431338,0.00014711,2]
[420585728,1776274654179,-508.0,0.00014731,3]
[420585729,1776274654188,-200.0,0.00014795,3]
[420585730,1776274654197,-325.22,0.00014795,3]
[420585731,1776274654207,-676.93560842,0.00014795,2]
[420585732,1776274654219,-75.26534012,0.00014795,2]
[420585733,1776274654228,-396.38901845,0.00014856,2]
[420585734,1776274654238,-1515.47771978,0.00014856,2]
[420585735,1776274654247,-500.0,0.00014968,2]
[420585736,1776274654257,-221.58569486,0.00014968,2]
[420585737,1776274654271,-485.79636155,0.00014968,2]
[420585738,1776274654282,-456.50541151,0.00014968,2]
[420585739,1776274654294,-336.11253208,0.00014968,2]
[420585740,1776274654307,-763.88746792,0.00014968,2]
[420585741,1776274654332,-555.59417147,0.00010499,2]
[420585742,1776274654346,-2157.20744558,0.00010499,2]
[420585743,1776274654365,-488.47721465,0.00010499,2]
[420585744,1776274654412,-535.30527401,0.00010499,2]
[420585745,1776274654422,-1140.21198858,0.00010499,2]
[420585746,1776274656476,-2596.37211713,0.00010499,2]
[420585747,1776274656486,-1337.24364215,0.00010499,2]
[420585748,1776274656795,-695.05280157,0.00010499,2]
[420585749,1776274656817,-1187.35566211,0.00010499,2]
[420585750,1776274656828,-363.98,0.00010499,2]
[420585751,1776274656842,-152.95199988,0.00010499,2]
[420585752,1776274656854,-3736.58410571,0.00010499,2]
[420585753,1776274656864,-3736.58410571,0.00010499,2]
[420585754,1776274656874,-3736.58410571,0.00010499,2]
[420585755,1776274656887,-3736.58410571,0.00010499,2]
[420585756,1776274656902,-3736.58410571,0.00010499,2]
[420585757,1776274656911,-3736.58410571,0.00010499,2]
[420585758,1776274656924,-3736.58410571,0.00010499,2]
[420585759,1776274656934,-3736.58410571,0.00010499,2]
[420585760,1776274656947,-3736.58410571,0.00010499,2]
[420585761,1776274656957,-3736.58410571,0.00010499,2]
[420585762,1776274656968,-3736.58410571,0.00010499,2]
[420585763,1776274656977,-3736.58410571,0.00010499,2]
[420585764,1776274656988,-3736.58410571,0.00010499,2]
[420585765,1776274656997,-3736.58410571,0.00010499,2]
[420585766,1776274657010,-3736.58410571,0.00010499,2]
[420585767,1776274657020,-3736.58410571,0.00010499,2]
[420585768,1776274657030,-3736.58410571,0.00010499,2]
[420585769,1776274657040,-3736.58410571,0.00010499,2]
[420585770,1776274657049,-500.0,0.00010499,2]
[420585771,1776274657063,-500.0,0.00010499,2]
[420585772,1776274657072,-500.0,0.00010499,2]
[420585773,1776274657082,-639.94414786,0.00010499,2]
[420585774,1776274657093,-500.0,0.00010499,2]
[420585775,1776274657106,-500.0,0.00010499,2]
[420585776,1776274657116,-500.0,0.00010499,2]
[420585777,1776274657126,-500.0,0.00010499,2]
[420585778,1776274657137,-163.49251925,0.00010499,2]
[420585779,1776274657147,-202.15177586,0.00013424,2]
[420585780,1776274657156,-150.0,0.00013424,2]
[420585781,1776274657166,-150.0,0.00013424,2]
[420585782,1776274657175,-150.0,0.00013424,2]
[420585783,1776274657184,-150.0,0.00013424,2]
[420585784,1776274657194,-150.0,0.00013424,2]
[420585785,1776274657204,-250.0,0.00013424,2]
[420585786,1776274657213,-151.64471322,0.00013424,2]
[420585787,1776274657223,-156.99098125,0.00013424,2]
[420585788,1776274657233,-150.0,0.00013424,2]
[420585789,1776274657242,-150.0,0.00013424,2]
[420585790,1776274657252,-150.0,0.00013424,2]
[420585791,1776274657263,-247.87591795,0.00013424,2]
[420585792,1776274657273,-421.0,0.00013424,2]
[420585793,1776274657283,-195.97180935,0.00013699,2]
[420585794,1776274657294,-736.11253208,0.00014968,2]
[420585795,1776274657305,-500.0,0.00014968,2]
[420585796,1776274657315,-1500.0,0.00014968,2]
[420585797,1776274657324,-1186.67924515,0.00014968,2]
[420585798,1776274657335,-1500.0,0.00014968,2]
[420585799,1776274657346,-151.0,0.00014997,2]
[420585800,1776274657356,-666.0,0.00014999,2]
[420585801,1776274657366,-201.0,0.00015068,2]
[420585802,1776274657377,-800.76869463,0.00015068,2]
[420585803,1776274657387,-666.0,0.00015199,2]
[420585804,1776274657396,-1076.295236,0.00015226,2]
[420585805,1776274657409,-6517.56431338,0.00015255,2]
[420585806,1776274657421,-168752.3619134,0.00015274,2]
[420585807,1776274657432,-151.0,0.00015296,2]
[420585808,1776274657443,-151.0,0.00015296,2]
[420585809,1776274657453,-174.67353777,0.00015296,2]
[420585810,1776274657466,-666.0,0.00015298,2]
[420585811,1776274657476,-500.0,0.00015298,2]
[420585812,1776274657488,-500.0,0.00015298,2]
[420585813,1776274657502,-666.0,0.00015299,2]
[420585814,1776274657512,-500.0,0.00015299,2]
[420585815,1776274657523,-500.0,0.00015299,2]
[420585816,1776274657542,-500.0,0.00015299,2]
[420585817,1776274657554,-500.0,0.00015299,2]
[420585818,1776274657564,-500.0,0.00015299,2]
[420585819,1776274657583,-500.0,0.00015299,2]
[420585820,1776274657595,-500.0,0.00015299,2]
[420585821,1776274657607,-314.150223,0.00015299,2]
[420585822,1776274657622,-314.150223,0.00015299,2]
[420585823,1776274657636,-314.150223,0.00015299,2]
[420585824,1776274657654,-314.150223,0.00015299,2]
[420585825,1776274657675,-500.0,0.00015299,2]
[420585826,1776274657690,-500.0,0.00015299,2]
[420585827,1776274657706,-500.0,0.00015299,2]
[420585828,1776274657727,-500.0,0.00015299,2]
[420585829,1776274657741,-500.0,0.00015299,2]
[420585830,1776274657758,-500.0,0.00015299,2]
[420585831,1776274657775,-500.0,0.00015299,2]
[420585832,1776274657791,-163.763675,0.000153,2]
[420585833,1776274657805,-163.763675,0.000153,2]
[420585834,1776274657821,-163.763675,0.000153,2]
[420585835,1776274657834,-163.763675,0.000153,2]
[420585836,1776274657853,-151.0,0.000153,2]
[420585837,1776274657869,-314.150223,0.000153,2]
[420585838,1776274657886,-314.150223,0.000153,2]
[420585839,1776274657898,-314.150223,0.000153,2]
[420585840,1776274657912,-314.150223,0.000153,2]
[420585841,1776274657924,-151.0,0.000153,2]
[420585842,1776274657945,-502.504298,0.000153,2]
[420585843,1776274657959,-502.504298,0.000153,2]
[420585844,1776274657971,-502.504298,0.000153,2]
[420585845,1776274657990,-502.504298,0.000153,2]
[420585846,1776274658009,-6307.0,0.00015375,2]
[420585847,1776274658026,-513.1113,0.000155,2]
[420585848,1776274658055,-2000.0,0.00015516,2]
[420585849,1776274658096,-2000.0,0.00015516,2]
[420585850,1776274658197,-226.17096899,0.00015516,2]
[420585851,1776274658371,-2000.0,0.00015516,2]
[420585852,1776274658613,-2473.0,0.00015716,2]
[420585853,1776274658790,-6517.56431338,0.000158,2]
[420585854,1776274658962,-201.0,0.0001589,2]
[420585855,1776274659124,-666.0,0.00015898,2]
[420585856,1776274659318,-666.0,0.00015899,2]
[420585857,1776274659464,-500.0,0.00015899,2]
[420585858,1776274659554,-500.0,0.00015899,2]
[420585859,1776274659627,-500.0,0.00015899,2]
[420585860,1776274659687,-500.0,0.00015899,2]
[420585861,1776274659710,-500.0,0.00015899,2]
[420585862,1776274659734,-500.0,0.00015899,2]
[420585863,1776274659774,-500.0,0.00015899,2]
[420585864,1776274659800,-500.0,0.00015899,2]
[420585865,1776274659847,-500.0,0.00015899,2]
[420585866,1776274659938,-500.0,0.00015899,2]
[420585867,1776274660154,-500.0,0.00015899,2]
[420585868,1776274660358,-500.0,0.00015899,2]
[420585869,1776274660564,-500.0,0.00015899,2]
[420585870,1776274660814,-500.0,0.00015899,2]
[420585871,1776274661050,-500.0,0.00015899,2]
[420585872,1776274661289,-500.0,0.00015899,2]
[420585873,1776274661426,-500.0,0.00015899,2]
[420585874,1776274661496,-500.0,0.00015899,2]
[420585875,1776274661539,-500.0,0.00015899,2]
[420585876,1776274661566,-500.0,0.00015899,2]
[420585877,1776274661588,-500.0,0.00015899,2]
[420585878,1776274661603,-500.0,0.00015899,2]
[420585879,1776274661626,-500.0,0.00015899,2]
[420585880,1776274661647,-500.0,0.00015899,2]
[420585881,1776274661669,-500.0,0.00015899,2]
[420585882,1776274661683,-500.0,0.00015899,2]
[420585883,1776274661694,-500.0,0.00015899,2]
[420585884,1776274661712,-500.0,0.00015899,2]
[420585885,1776274661725,-500.0,0.00015899,2]
[420585886,1776274661737,-500.0,0.00015899,2]
[420585887,1776274661750,-500.0,0.00015899,2]
[420585888,1776274661766,-500.0,0.00015899,2]
[420585889,1776274661778,-500.0,0.00015899,2]
[420585890,1776274661794,-500.0,0.00015899,2]
[420585891,1776274661810,-500.0,0.00015899,2]
[420585892,1776274661821,-500.0,0.00015899,2]
[420585893,1776274661831,-500.0,0.00015899,2]
[420585894,1776274661857,-500.0,0.00015899,2]
[420585895,1776274661867,-500.0,0.00015899,2]
[420585896,1776274661884,-500.0,0.00015899,2]
[420585897,1776274661902,-500.0,0.00015899,2]
[420585898,1776274661913,-500.0,0.00015899,2]
[420585899,1776274661934,-500.0,0.00015899,2]
[420585900,1776274661946,-500.0,0.00015899,2]
[420585901,1776274661959,-500.0,0.00015899,2]
[420585902,1776274661975,-500.0,0.00015899,2]
[420585903,1776274661987,-500.0,0.00015899,2]
[420585904,1776274661999,-500.0,0.00015899,2]
[420585905,1776274662013,-500.0,0.00015899,2]
[420585906,1776274662028,-500.0,0.00015899,2]
[420585907,1776274662042,-500.0,0.00015899,2]
[420585908,1776274662057,-500.0,0.00015899,2]
[420585909,1776274662072,-500.0,0.00015899,2]
[420585910,1776274662086,-500.0,0.00015899,2]
[420585911,1776274662102,-500.0,0.00015899,2]
[420585912,1776274662116,-500.0,0.00015899,2]
[420585913,1776274662129,-500.0,0.00015899,2]
[420585914,1776274662142,-500.0,0.00015899,2]
[420585915,1776274662156,-500.0,0.00015899,2]
[420585916,1776274662167,-500.0,0.00015899,2]
[420585917,1776274662178,-500.0,0.00015899,2]
[420585918,1776274662188,-500.0,0.00015899,2]
[420585919,1776274662204,-500.0,0.00015899,2]
[420585920,1776274662218,-500.0,0.00015899,2]
[420585921,1776274662229,-500.0,0.00015899,2]
[420585922,1776274662241,-408.16165196,0.00015899,2]
[420585923,1776274662251,-500.0,0.00015899,2]
[420585924,1776274662264,-500.0,0.00015899,2]
[420585925,1776274662273,-500.0,0.00015899,2]
[420585926,1776274662287,-500.0,0.00015899,2]
[420585927,1776274662296,-500.0,0.00015899,2]
[420585928,1776274662309,-300.81366105,0.00015899,2]
[420585929,1776274662322,-163.763675,0.000159,2]
[420585930,1776274662335,-163.763675,0.000159,2]
[420585931,1776274662344,-163.763675,0.000159,2]
[420585932,1776274662354,-163.763675,0.000159,2]
[420585933,1776274662368,-151.0,0.000159,2]
[420585934,1776274662382,-314.150223,0.000159,2]
[420585935,1776274662391,-314.150223,0.000159,2]
[420585936,1776274662403,-314.150223,0.000159,2]
[420585937,1776274662413,-314.150223,0.000159,2]
[420585938,1776274662425,-151.0,0.000159,2]
[420585939,1776274662435,-502.504298,0.000159,2]
[420585940,1776274662446,-502.504298,0.000159,2]
[420585941,1776274662455,-502.504298,0.000159,2]
[420585942,1776274662466,-502.504298,0.000159,2]
[420585943,1776274662476,-1274.91,0.00015945,2]
[420585944,1776274662489,-508.0,0.00015963,4]
[420585945,1776274662498,-666.0,0.00015998,2]
[420585946,1776274662509,-200.0,0.00016,2]
[420585947,1776274662518,-2500.0,0.00016064,2]
[420585948,1776274662531,-806.14037165,0.00016064,2]
[420585949,1776274662543,-2500.0,0.00016064,2]
[420585950,1776274662555,-200.0,0.000164,2]
[420585951,1776274662564,-184.83,0.00016438,2]
[420585952,1776274662577,-150.0,0.00016438,2]
[420585953,1776274662589,-307.0,0.000165,2]
[420585954,1776274662600,-1305.56120417,0.000165,2]
[420585955,1776274662609,-1000.0,0.000165,2]
[420585956,1776274662622,-4012.64718467,0.000165,2]
[420585957,1776274662633,-313.0,0.000165,2]
[420585958,1776274662643,-2979.26831966,0.000165,2]
[420585959,1776274662652,-3000.0,0.00016612,2]
[420585960,1776274662665,-3000.0,0.00016612,2]
[420585961,1776274662676,-201.0,0.00016712,2]
[420585962,1776274662686,-1520.11798105,0.000169,2]
[420585963,1776274662696,-163.763675,0.000169,2]
[420585964,1776274662707,-163.763675,0.000169,2]
[420585965,1776274662719,-163.763675,0.000169,2]
[420585966,1776274662729,-163.763675,0.000169,2]
[420585967,1776274662738,-656.1991,0.000169,2]
[420585968,1776274662751,-150.0,0.00016986,2]
[420585969,1776274662764,-3277.36698681,0.00017022,2]
[420585970,1776274662775,-3500.0,0.0001716,2]
[420585971,1776274662785,-3500.0,0.0001716,2]
[420585972,1776274662799,-508.0,0.00017194,5]
[420585973,1776274662811,-1245.47646913,0.00017241,2]
[420585974,1776274662820,-1315.48096564,0.0001738,2]
[420585975,1776274662832,-350.0,0.00017453,2]
[420585976,1776274662847,-173.80755769,0.00017534,2]
[420585977,1776274662857,-4000.0,0.00017708,2]
[420585978,1776274662868,-4000.0,0.00017708,2]
[420585979,1776274662883,-1520.11798105,0.000179,2]
[420585980,1776274662896,-272.23606433,0.000179,2]
[420585981,1776274662907,-1393.77117699,0.000179,2]
[420585982,1776274662923,-20504.60645144,0.000179,2]
[420585983,1776274662938,-54119.42123847,0.00018,2]
[420585984,1776274662956,-847.0,0.00018,2]
[420585985,1776274662985,-1064.40417485,0.00018,2]
[420585986,1776274663002,-34133.98291723,0.00018,2]
[420585987,1776274663056,-421.0,0.00013424,2]
[420585988,1776274663074,-394.91901641,0.00018,2]
[420585989,1776274663090,-628.56596012,0.00018,2]
[420585990,1776274663102,-558.94424458,0.00018,2]
[420585991,1776274663121,-1141.47131779,0.00018,2]
[420585992,1776274663147,-421.0,0.00013424,2]
[420585993,1776274663161,-79.0,0.00018,2]
[420585994,1776274663175,-17371.88778534,0.00018,2]
[420585995,1776274663185,-300.0,0.00018,2]
[420585996,1776274663200,-1201.68742832,0.00018,2]
[420585997,1776274663210,-2299.31797187,0.00018,30]
[420585998,1776274663221,-1500.0,0.00018,2]
[420585999,1776274663231,-1500.0,0.00018,2]
[420586000,1776274663243,-1500.0,0.00018,2]
[420586001,1776274663253,-1500.0,0.00018,2]
[420586002,1776274663263,-1500.0,0.00018,2]
[420586003,1776274663272,-1500.0,0.00018,2]
[420586004,1776274663282,-1500.0,0.00018,2]
[420586005,1776274663294,-1500.0,0.00018,2]
[420586006,1776274663303,-1500.0,0.00018,2]
[420586007,1776274663312,-1500.0,0.00018,2]
[420586008,1776274663323,-1500.0,0.00018,2]
[420586009,1776274663332,-1500.0,0.00018,2]
[420586010,1776274663342,-1500.0,0.00018,2]
[420586011,1776274663351,-1500.0,0.00018,2]
[420586012,1776274663360,-1500.0,0.00018,2]
[420586013,1776274663371,-1500.0,0.00018,2]
[420586014,1776274663380,-1500.0,0.00018,2]
[420586015,1776274663390,-1500.0,0.00018,2]
[420586016,1776274663399,-1500.0,0.00018,2]
[420586017,1776274663410,-1500.0,0.00018,2]
[420586018,1776274663420,-1500.0,0.00018,2]
[420586019,1776274663429,-1500.0,0.00018,2]
[420586020,1776274663439,-1500.0,0.00018,2]
[420586021,1776274663449,-1500.0,0.00018,2]
[420586022,1776274663459,-1500.0,0.00018,2]
[420586023,1776274663467,-1500.0,0.00018,2]
[420586024,1776274663477,-1500.0,0.00018,2]
[420586025,1776274663486,-1500.0,0.00018,2]
[420586026,1776274663496,-1500.0,0.00018,2]
[420586027,1776274663505,-1500.0,0.00018,2]
[420586028,1776274663514,-1500.0,0.00018,2]
[420586029,1776274663523,-163.763675,0.00018,2]
[420586030,1776274663533,-1500.0,0.00018,2]
[420586031,1776274663542,-163.763675,0.00018,2]
[420586032,1776274663551,-1500.0,0.00018,2]
[420586033,1776274663560,-1500.0,0.00018,2]
[420586034,1776274663569,-1500.0,0.00018,2]
[420586035,1776274663578,-1500.0,0.00018,2]
[420586036,1776274663589,-163.763675,0.00018,2]
[420586037,1776274663600,-1500.0,0.00018,2]
[420586038,1776274663609,-163.763675,0.00018,2]
[420586039,1776274663619,-1500.0,0.00018,2]
[420586040,1776274663628,-1500.0,0.00018,2]
[420586041,1776274663637,-1500.0,0.00018,2]
[420586042,1776274663646,-1500.0,0.00018,2]
[420586043,1776274663656,-163.763675,0.00018,2]
[420586044,1776274663665,-1500.0,0.00018,2]
[420586045,1776274663675,-163.763675,0.00018,2]
[420586046,1776274663684,-1500.0,0.00018,2]
[420586047,1776274663694,-1500.0,0.00018,2]
[420586048,1776274663703,-1500.0,0.00018,2]
[420586049,1776274663712,-163.763675,0.00018,2]
[420586050,1776274663722,-1500.0,0.00018,2]
[420586051,1776274663732,-163.763679,0.00018,2]
[420586052,1776274663741,-1500.0,0.00018,2]
[420586053,1776274663751,-1500.0,0.00018,2]
[420586054,1776274663760,-1500.0,0.00018,2]
[420586055,1776274663769,-1500.0,0.00018,2]
[420586056,1776274663778,-1500.0,0.00018,2]
[420586057,1776274663788,-1500.0,0.00018,2]
[420586058,1776274663797,-1500.0,0.00018,2]
[420586059,1776274663807,-1500.0,0.00018,2]
[420586060,1776274663816,-1500.0,0.00018,2]
[420586061,1776274663825,-200.0,0.00018,2]
[420586062,1776274663834,-1500.0,0.00018,2]
[420586063,1776274663844,-1500.0,0.00018,2]
[420586064,1776274663854,-1500.0,0.00018,2]
[420586065,1776274663863,-1500.0,0.00018,2]
[420586066,1776274663872,-1500.0,0.00018,2]
[420586067,1776274663882,-1500.0,0.00018,2]
[420586068,1776274663891,-1500.0,0.00018,2]
[420586069,1776274663901,-1500.0,0.00018,2]
[420586070,1776274663910,-1500.0,0.00018,2]
[420586071,1776274663920,-1500.0,0.00018,2]
[420586072,1776274663929,-1500.0,0.00018,2]
[420586073,1776274663938,-1500.0,0.00018,2]
[420586074,1776274663947,-1500.0,0.00018,2]
[420586075,1776274663957,-1500.0,0.00018,2]
[420586076,1776274663966,-1500.0,0.00018,2]
[420586077,1776274663976,-1500.0,0.00018,2]
[420586078,1776274663985,-1500.0,0.00018,2]
[420586079,1776274663994,-1500.0,0.00018,2]
[420586080,1776274664004,-1500.0,0.00018,2]
[420586081,1776274664014,-1500.0,0.00018,2]
[420586082,1776274664023,-1500.0,0.00018,2]
[420586083,1776274664033,-1500.0,0.00018,2]
[420586084,1776274664043,-1500.0,0.00018,2]
[420586085,1776274664052,-1500.0,0.00018,2]
[420586086,1776274664061,-1500.0,0.00018,2]
[420586087,1776274664071,-1500.0,0.00018,2]
[420586088,1776274664080,-1500.0,0.00018,2]
[420586089,1776274664090,-1500.0,0.00018,2]
[420586090,1776274664099,-1500.0,0.00018,2]
[420586091,1776274664108,-1500.0,0.00018,2]
[420586092,1776274664117,-1500.0,0.00018,2]
[420586093,1776274664126,-1500.0,0.00018,2]
[420586094,1776274664136,-1500.0,0.00018,2]
[420586095,1776274664145,-1500.0,0.00018,2]
[420586096,1776274664154,-1500.0,0.00018,2]
[420586097,1776274664163,-1500.0,0.00018,2]
[420586098,1776274664172,-1500.0,0.00018,2]
[420586099,1776274664182,-1500.0,0.00018,2]
[420586100,1776274664191,-1500.0,0.00018,2]
[420586101,1776274664200,-1500.0,0.00018,2]
[420586102,1776274664210,-1500.0,0.00018,2]
[420586103,1776274664219,-1500.0,0.00018,2]
[420586104,1776274664228,-1500.0,0.00018,2]
[420586105,1776274664238,-1500.0,0.00018,2]
[420586106,1776274664247,-1500.0,0.00018,2]
[420586107,1776274664256,-314.150223,0.00018,2]
[420586108,1776274664266,-314.150223,0.00018,2]
[420586109,1776274664275,-314.150223,0.00018,2]
[420586110,1776274664284,-314.150223,0.00018,2]
[420586111,1776274664293,-314.150223,0.00018,2]
[420586112,1776274664302,-314.150223,0.00018,2]
[420586113,1776274664312,-314.150223,0.00018,2]
[420586114,1776274664321,-314.150227,0.00018,2]
[420586115,1776274664331,-154.289621,0.00018,2]
[420586116,1776274664340,-502.504298,0.00018,2]
[420586117,1776274664350,-502.504298,0.00018,2]
[420586118,1776274664359,-502.504298,0.00018,2]
[420586119,1776274664369,-502.504298,0.00018,2]
[420586120,1776274664379,-502.504298,0.00018,2]
[420586121,1776274664388,-502.504298,0.00018,2]
[420586122,1776274664397,-502.504298,0.00018,2]
[420586123,1776274664407,-502.504298,0.00018,2]
[420586124,1776274664416,-502.504298,0.00018,2]
[420586125,1776274664426,-502.504298,0.00018,2]
[420586126,1776274664436,-502.504298,0.00018,2]
[420586127,1776274664445,-502.504291,0.00018,2]
[420586128,1776274664455,-257.88034491,0.00018007,120]
[420586129,1776274664464,-1051.0,0.0001805,2]
[420586130,1776274664474,-4125.0,0.0001805,2]
[420586131,1776274664484,-1793.56136416,0.000181,2]
[420586132,1776274664493,-2150.54787922,0.00018206,7]
[420586133,1776274664503,-1492.23114589,0.00018249,7]
[420586134,1776274664512,-3870.08218809,0.00018256,2]
[420586135,1776274664523,-494.04562318,0.00018256,2]
[420586136,1776274664533,-338.67694719,0.00018256,7]
[420586137,1776274664542,-839.1889,0.000183,2]
[420586138,1776274664552,-232.09231042,0.00018355,120]
[420586139,1776274664561,-508.0,0.00018426,6]
[420586140,1776274664571,-151.0,0.000185,5]
[420586141,1776274664580,-2150.54787922,0.00018633,7]
[420586142,1776274664590,-1492.23114589,0.00018687,7]
[420586143,1776274664599,-2473.0,0.00018716,2]
[420586144,1776274664609,-495.0,0.00018946,2]
[420586145,1776274664622,-5210.92036946,0.00019,2]
[420586146,1776274664631,-1051.0,0.0001905,2]
[420586147,1776274664641,-4125.0,0.0001905,2]
[420586148,1776274664653,-2150.54787922,0.00019059,7]
[420586149,1776274664665,-1492.23114589,0.00019124,7]
[420586150,1776274664678,-158.55,0.00019178,2]
[420586151,1776274664689,-150.0,0.00019178,2]
[420586152,1776274664699,-150.0,0.00019178,2]
[420586153,1776274665009,-150.0,0.00019178,2]
[420586154,1776274665046,-179.40697106,0.00019178,2]
[420586155,1776274665077,-799.823492,0.00019178,2]
[420586156,1776274665095,-799.823492,0.00019178,2]
[420586157,1776274665112,-799.823492,0.00019178,2]
[420586158,1776274665131,-799.823492,0.00019178,2]
[420586159,1776274665142,-799.823492,0.00019178,2]
[420586160,1776274665156,-799.823492,0.00019178,2]
[420586161,1776274665175,-799.823492,0.00019178,2]
[420586162,1776274665187,-799.823492,0.00019178,2]
[420586163,1776274665197,-799.823492,0.00019178,2]
[420586164,1776274665210,-799.823492,0.00019178,2]
[420586165,1776274665222,-799.823492,0.00019178,2]
[420586166,1776274665237,-799.823492,0.00019178,2]
[420586167,1776274665250,-799.823492,0.00019178,2]
[420586168,1776274665263,-799.823492,0.00019178,2]
[420586169,1776274665274,-799.823492,0.00019178,2]
[420586170,1776274665285,-799.823492,0.00019178,2]
[420586171,1776274665297,-799.823492,0.00019178,2]
[420586172,1776274665311,-799.823492,0.00019178,2]
[420586173,1776274665323,-799.823492,0.00019178,2]
[420586174,1776274665334,-799.823492,0.00019178,2]
[420586175,1776274665344,-200.283592,0.00019178,2]